Cogmind - Beta 15 @@@ ROGUE MODE // 2025.08.31 @ 00:19:31 Player: swetpototo Result: Destroyed by P-70 Sage with High-powered Shock Rifle Performance ------------- Evolutions (5) 2500 Regions Visited (4) 800 Robots Destroyed (29) 145 Value Destroyed (931) 931 Prototype IDs (2) 40 Alien Tech Used (0) 0 Bonus (800) 800 TOTAL SCORE: 5216 Bonus ------- Registered with UFD 300 Met Optimus in HQ 500 Cogmind --------- Core Integrity 0/1000 Matter 273/300 Energy 70/100 System Corruption 19% Temperature Warm (138) Movement Flying (32) Location -5/Factory Parts ------- > --- POWER (2) -------- (None) > --- PROPULSION (4) --- Improved Cesium-ion Thruster Improved Cesium-ion Thruster > --- UTILITY (7) ------ (None) > --- WEAPON (4) ------- (None) > --- INVENTORY (5) ---- (None) Peak State ------------ > --- POWER ------------ Neutrino Core Neutrino Core > --- PROPULSION ------- Titanium Leg Improved Carbon-fiber Leg Compact Wheel > --- UTILITY ---------- Scrap Suit Microactuators Improved Powered Armor Improved Powered Armor Improved Powered Armor Improved Powered Armor > --- WEAPON ----------- Wave Gun KE Penetrator KE Penetrator Advanced Assault Cannon > --- INVENTORY -------- Neutrino Core Carbon-fiber Leg Long-range Proton Cannon Subdweller Beam Cannon Battle Cannon [Rating: 79] Favorites ----------- Power Neutrino Core Engine Subdweller Power Source Power Core Neutrino Core Propulsion Aluminum Leg Treads Improved Treads Leg Aluminum Leg Wheel Compact Wheel Flight Unit Improved Cesium-ion Thruster Utility Improved Powered Armor Device Scrap Suit Storage Improved Energy Well Protection Improved Powered Armor Weapon Advanced Assault Cannon Energy Gun Wave Gun Energy Cannon Long-range Proton Cannon Ballistic Gun KE Penetrator Ballistic Cannon Advanced Assault Cannon Launcher Improved Proton Missile Launcher Build | -11 -10 -10 -7 -5 ------- Run | Yrd Mat Sub Scr Fac Slots Evolved 10 | . . . . 10 Power 1 | . . . . 1 Propulsion 2 | . . . . 2 Utility 5 | . . . . 5 Weapon 2 | . . . . 2 Parts Attached 36 | . 5 3 7 21 Power 6 | . . 1 2 3 Engine 3 | . . 1 2 . Core 3 | . . . . 3 Reactor . | . . . . . Propulsion 10 | . 2 . 3 5 Treads 1 | . . . . 1 Leg 6 | . 2 . 3 1 Wheel 1 | . . . . 1 Hover . | . . . . . Flight 2 | . . . . 2 Utility 11 | . 2 1 1 7 Device 3 | . 1 . 1 1 Storage 2 | . . . . 2 Processor . | . . . . . Hackware . | . . . . . Protection 6 | . 1 1 . 4 Artifact . | . . . . . Weapon 9 | . 1 1 1 6 Energy Gun 1 | . . . . 1 Energy Cannon 1 | . . . . 1 Ballistic Gun 2 | . . . . 2 Ballistic Cannon 4 | . 1 1 1 1 Launcher 1 | . . . . 1 Special Weapon . | . . . . . Impact Weapon . | . . . . . Slashing Weapon . | . . . . . Piercing Weapon . | . . . . . Special Melee Weapon . | . . . . . Unidentified Prototypes 2 | . . . . 2 Parts Lost 19 | . . . 1 18 Power 2 | . . . . 2 Propulsion 5 | . . . . 5 Utility 5 | . . . 1 4 Weapon 7 | . . . . 7 Highest Loss Streak 14 | . . . 1 14 To Critical Strikes . | . . . . . Average Backups 3 | . 7 3 3 3 Power 1 | . 3 1 1 . Propulsion . | . . . . . Utility . | . . . . . Weapon 1 | . 3 1 1 1 Tool/Special . | . . . . . Unused Backups 8 | . . 6 1 1 Power 4 | . . 3 1 . Propulsion . | . . . . . Utility . | . . . . . Weapon 4 | . . 3 . 1 Tool/Special . | . . . . . Average Slot Usage (%) 78 | . 94 85 84 65 Engine 9 | . 14 14 13 . Core 2 | . . . . 8 Leg 20 | . 28 28 27 5 Wheel 1 | . . . . 3 Device 2 | . 3 . . 6 Storage 2 | . 14 . . 4 Protection 13 | . 5 13 13 14 Energy Gun 2 | . 18 9 . 1 Ballistic Gun 1 | . . . . 4 Ballistic Cannon 18 | . 9 18 28 7 Peak Build Rating 79 | . 7 11 25 79 Average Rating 28 | . 6 9 15 56 On Entrance 11 | 6 6 7 11 25 Naked Turns 40 | . . . . 40 Heaviest Build 107 | 14 16 29 32 107 Greatest Support 38 | 20 20 20 38 35 Greatest Overweight (x) 12 | . . 1 1 12 Average Overweight (x) 1 | . . . . 4 Largest Inventory Capacity 10 | . 8 8 5 10 Average Capacity 5 | . 8 5 5 6 Most Carried 8 | . 8 8 5 5 Average Carried 4 | . 7 5 4 4 Final Capacity 8 | 8 8 5 5 5 Final Carried 8 | 6 8 5 5 . Class Distribution -------------------- 62% | Mutant 14% | Tank 11% | Derelict-Tank 10% | Derelict-Mutant Dominant Class ---------------- Mutant | -10/Materials Mutant | -10/Subcaves Mutant | -7/Scraptown Tank | -5/Factory Resources | -11 -10 -10 -7 -5 ----------- Run | Yrd Mat Sub Scr Fac Matter Collected 1278 | 183 2 39 261 793 Remotely . | . . . . . Salvage Created 1448 | . 79 . 183 1186 Parts 62 | . 6 . 10 46 Haulers Intercepted 1 | . . . . 1 Recyclers Shooed 7 | . . . . 7 Parts Field Recycled . | . . . . . Retrieved Matter . | . . . . . Parts Self-Destructed 12 | . . 12 . . Prevented . | . . . . . Kills | -11 -10 -10 -7 -5 ------- Run | Yrd Mat Sub Scr Fac Combat Hostiles Destroyed 18 | . 3 . 3 12 Guns 7 | . . . . 7 Cannons 8 | . 3 . 3 2 AOE 2 | . . . . 2 Classes Destroyed 14 | . 1 . 2 11 Worker 2 | . . . . 2 Builder 2 | . . . . 2 Tunneler 1 | . . . . 1 Hauler 1 | . . . . 1 Recycler 4 | . . . . 4 Mechanic 1 | . . . . 1 Swarmer 5 | . . . . 5 Grunt 5 | . 3 . . 2 Brawler 1 | . . . . 1 Sentry 1 | . . . . 1 Hunter 2 | . . . . 2 Programmer 1 | . . . . 1 Explorer 1 | . . . 1 . Scrapper 2 | . . . 2 . Best Kill Streak 10 | . 3 . 3 10 Combat Bots Only 5 | . 3 . 3 5 Max Kills in Single Turn 4 | . 1 . 1 4 Gunslinging . | . . . . . Exploded 2 | . . . . 2 Melee . | . . . . . Uniques/NPCs Destroyed . | . . . . . Combat | -11 -10 -10 -7 -5 -------- Run | Yrd Mat Sub Scr Fac Hostile Shots Fired 357 | . 25 5 57 270 Missed 82 | . 4 1 12 65 Hits 275 | . 21 4 45 205 Melee 3 | . . . 3 . Projectile 272 | . 21 4 42 205 AOE 2 | . . 2 . . Critical Strikes 10 | . 1 . 2 7 Part Disruptions 2 | . . . . 2 Damage Taken 5228 | . 279 174 797 3978 Core 1222 | . 71 . 137 1014 Absorbed by Shields . | . . . . . Redirected to Shielding 8 | . 8 . . . Regen/Repaired (Parts) 15 | . . . 10 5 Core Remaining (%) 58 | 100 . . 16 . Volleys Fired 80 | . 15 4 8 53 Largest 4 | . 2 1 2 4 Hottest 187 | . 90 30 73 187 Shots Fired 183 | . 26 4 13 140 Gun 85 | . 13 . . 72 Cannon 92 | . 13 4 13 62 Launcher 6 | . . . . 6 Special . | . . . . . Kinetic 141 | . 13 4 13 111 Thermal 32 | . 11 . . 21 Explosive . | . . . . . Electromagnetic 10 | . 2 . . 8 Robot Hit Streak 14 | . 6 4 4 14 Robot Miss Streak 12 | . 2 1 1 12 Penetration Max 1 | . . . . 1 Secondary Targets . | . . . . . Shots Hit Robots 101 | . 18 3 9 71 Core Hits 51 | . 6 . 3 42 Critical Kills . | . . . . . Critical Parts Destroyed . | . . . . . Critical Strikes 8 | . 1 . . 7 Burn 2 | . . . . 2 Blast 6 | . 1 . . 5 Melee Attacks . | . . . . . Impact . | . . . . . Slashing . | . . . . . Piercing . | . . . . . Sneak Attacks . | . . . . . Combat Hostiles . | . . . . . Follow-up Attacks . | . . . . . Damage Inflicted 3444 | . 306 53 224 2861 Guns 1341 | . 104 . . 1237 Cannons 1472 | . 202 53 215 1002 Explosions 562 | . . . . 562 Melee . | . . . . . Ramming 69 | . . . 9 60 Kinetic 2243 | . 202 53 215 1773 Thermal 669 | . 88 . . 581 Explosive . | . . . . . Electromagnetic 463 | . 16 . . 447 Impact . | . . . . . Slashing . | . . . . . Piercing . | . . . . . Highest Corruption 19 | . . . . 19 Average Corruption 9 | . . . . 9 Corruption Purged . | . . . . . Corruption Blocked . | . . . . . Effects 14 | . . . . 14 Message Errors 4 | . . . . 4 Matter Fused 2 | . . . . 2 Heat Flow Errors 3 | . . . . 3 Parts Rejected 1 | . . . . 1 Parts Fused 1 | . . . . 1 Misfires 1 | . . . . 1 Misdirections 2 | . . . . 2 Overload Shots . | . . . . . Overflow Damage 40 | . . . . 40 Projectiles 34 | . . . . 34 Explosions 6 | . . . . 6 Melee . | . . . . . Knockbacks 12 | . 2 . 3 7 Impact 1 | . . . . 1 Kinetic 11 | . 2 . 3 6 Secondary . | . . . . . Self-Inflicted Damage 22 | . . . . 22 Shots . | . . . . . Rammed 8 | . . . . 8 Targets Rammed 18 | . . . 4 14 Kicked 10 | . . . 4 6 Crushed . | . . . . . Highest Temperature 569 | . 322 . 96 569 Average Temperature 172 | . 161 . 52 192 Received Heat Transfer 621 | . 171 12 348 90 Effects 18 | . 1 . . 17 Shutdowns 5 | . . . . 5 Interference 9 | . 1 . . 8 Matter Decay 2 | . . . . 2 Damage (minor) 1 | . . . . 1 Damage (core) 1 | . . . . 1 Siege Activations . | . . . . . Martial Activations . | . . . . . Shielding Activations . | . . . . . Robots Disrupted . | . . . . . Combat Hostiles . | . . . . . Robots Corrupted 1 | . . . . 1 Combat Hostiles 1 | . . . . 1 Parts Fried 5 | . . . . 5 Impact Corruptions . | . . . . . Robots Melted . | . . . . . Combat Hostiles . | . . . . . Parts Melted 5 | . 1 . 3 1 Heat Transferred 1223 | . 259 . . 964 Parts Sabotaged . | . . . . . Parts Stolen . | . . . . . Parts Stripped . | . . . . . Power Chain Reactions . | . . . . . Alert | -11 -10 -10 -7 -5 ------- Run | Yrd Mat Sub Scr Fac Maximum Alert Level 1 | . . . . 1 Low Security (%) 91 | . 100 . . 89 Level 1 8 | . . . . 10 Level 2 . | . . . . . Level 3 . | . . . . . Level 4 . | . . . . . Level 5 . | . . . . . High Security . | . . . . . Max Security . | . . . . . Peak Influence 226 | . 70 . . 226 Initial . | . . . . . Average 56 | . 18 . . 62 Influence Increases 611 | . 80 . . 531 Destroy 0b10 Robot/C 300 | . 60 . . 240 Destroy 0b10 Robot/NC 55 | . . . . 55 Destroy Leader 72 | . 20 . . 52 Disable Machine 45 | . . . . 45 Destroy Structure 94 | . . . . 94 Lose Combat Pursuer 45 | . . . . 45 Influence Decreases 443 | . 20 60 . 363 Entered New Map 29 | . . 29 . . Time Decay 242 | . 20 31 . 191 Lost Part 172 | . . . . 172 Squads Dispatched 5 | . 1 . . 4 Investigation . | . . . . . Extermination 2 | . . . . 2 Reinforcement 3 | . 1 . . 2 Assault . | . . . . . Garrison . | . . . . . Intercept . | . . . . . Searches Triggered . | . . . . . Construction Impeded 1 | . . . . 1 Haulers Reinforced . | . . . . . Active Scanning Responses . | . . . . . Cargo Convoy Interrupts . | . . . . . Stealth | -11 -10 -10 -7 -5 --------- Run | Yrd Mat Sub Scr Fac Distress Signals 1 | . . . . 1 Communications Jammed . | . . . . . Distress Signals . | . . . . . Times Spotted 48 | . 5 2 17 24 Peak Tracking Total 5 | . 2 2 4 5 Tactical Retreats 2 | . . . . 2 Traps | -11 -10 -10 -7 -5 ------- Run | Yrd Mat Sub Scr Fac Traps Triggered 1 | . . . . 1 Indirectly 1 | . . . . 1 Trap Hack Attempts . | . . . . . Triggered . | . . . . . Disarmed . | . . . . . Reprogrammed . | . . . . . Reused . | . . . . . Traps Extracted . | . . . . . Installed . | . . . . . Triggered . | . . . . . Machines | -11 -10 -10 -7 -5 ---------- Run | Yrd Mat Sub Scr Fac Machines Disabled 4 | . . . 1 3 Max in Single Turn 2 | . . . 1 2 Machines Repaired . | . . . . . Machines Dismantled . | . . . . . Machines Sabotaged . | . . . . . Overloaded Fab Kills . | . . . . . Hacking | -11 -10 -10 -7 -5 --------- Run | Yrd Mat Sub Scr Fac Machines Accessed 3 | . 1 . 1 1 Terminals 2 | . 1 . . 1 Fabricators . | . . . . . Repair Stations . | . . . . . Recycling Units . | . . . . . Scanalyzers . | . . . . . Garrison Access . | . . . . . Total Hacks 5 | . 1 . 2 2 Successful 3 | . 1 . 2 . Failed 2 | . . . . 2 Catastrophic . | . . . . . Database Lockouts . | . . . . . Manual . | . . . . . Terminals 3 | . 1 . . 2 Fabricators . | . . . . . Repair Stations . | . . . . . Recycling Units . | . . . . . Scanalyzers . | . . . . . Garrison Access . | . . . . . Terminal Hacks 3 | . 1 . 2 . Record 2 | . . . 2 . Zone Layout 1 | . 1 . . . Fabricator Hacks . | . . . . . Repair Station Hacks . | . . . . . Recycling Unit Hacks . | . . . . . Scanalyzer . | . . . . . Garrison Access Hacks . | . . . . . Unauthorized Hacks . | . . . . . Terminals . | . . . . . Fabricators . | . . . . . Repair Stations . | . . . . . Recycling Units . | . . . . . Scanalyzers . | . . . . . Garrison Access . | . . . . . Data Cores Recovered . | . . . . . Used . | . . . . . Hacking Detections 2 | . 1 . . 1 Full Trace Events . | . . . . . Feedback Events . | . . . . . Feedback Blocked . | . . . . . Robot Schematics Acquired . | . . . . . Robots Built . | . . . . . Authchips . | . . . . . Time . | . . . . . Total Robot Build Rating . | . . . . . Part Schematics Acquired . | . . . . . Parts Built . | . . . . . Authchips . | . . . . . Time . | . . . . . Total Part Build Rating . | . . . . . Parts Repaired . | . . . . . Time . | . . . . . Parts Recycled . | . . . . . Recycled Matter . | . . . . . Retrieved Matter . | . . . . . Retrieved Components . | . . . . . Parts Scanalyzed . | . . . . . Part Schematics Acquired . | . . . . . Parts Damaged . | . . . . . Bothacking | -11 -10 -10 -7 -5 ------------ Run | Yrd Mat Sub Scr Fac Used RIF Installer . | . . . . . Robots Hacked . | . . . . . Non-combat . | . . . . . Combat . | . . . . . Robot Hacks Applied . | . . . . . Relay Couplers Released . | . . . . . Fabnet Peak Effective % . | . . . . . Robots Rewired . | . . . . . Allies Hacked . | . . . . . Hacks Repelled . | . . . . . Allies | -11 -10 -10 -7 -5 -------- Run | Yrd Mat Sub Scr Fac Total Allies . | . . . . . Largest Group . | . . . . . Highest-Rated Group . | . . . . . Highest-Rated Ally . | . . . . . Total Orders . | . . . . . Ally Attacks . | . . . . . Total Damage . | . . . . . Kills . | . . . . . Allies Corrupted . | . . . . . Allies Melted . | . . . . . Intel | -11 -10 -10 -7 -5 ------- Run | Yrd Mat Sub Scr Fac Active Infowar (turns) . | . . . . . Robot Analysis Total . | . . . . . Derelict Logs Recovered 2 | . . . 2 . Drone Launches . | . . . . . Drone Recoveries . | . . . . . Exploration | -11 -10 -10 -7 -5 ------------- Run | Yrd Mat Sub Scr Fac Turns Passed 2594 | . 155 302 1214 923 Spaces Moved 1313 | 1 76 150 684 402 Core 106 | . . . . 106 Treads . | . . . . . Legs 927 | 1 76 150 684 16 Wheels 279 | . . . . 279 Hover . | . . . . . Flight 1 | . . . . 1 Fastest Speed 35 | 120 120 120 125 35 Average Speed 170 | 120 120 189 171 170 Slowest Speed 650 | 120 120 190 190 650 Overloaded Moves . | . . . . . Propulsion Burnouts . | . . . . . Robots Hopped . | . . . . . Potential Cave-ins . | . . . . . Cave-ins Triggered . | . . . . . Exploration Rate (%) 19 | 2 13 15 57 10 Regions Visited 4 Branch Regions 2 Pre-discovered Areas 1 | . . . 1 . Known Exits Taken . | . . . . . Unknown Exits Taken 4 | 1 1 1 1 . Scrap Searched 3 | . . . 3 . Spaces Dug . | . . . . . Terrain Destroyed 48 | . . . 1 47 Melee . | . . . . . Projectile 23 | . . . 1 22 AOE 25 | . . . . 25 Terrain Rammed . | . . . . . Walls Destroyed . | . . . . . Machines Disabled . | . . . . . Actions | -11 -10 -10 -7 -5 --------- Run | Yrd Mat Sub Scr Fac Total 1515 | . 116 167 712 520 Wait 23 | . 8 . . 15 Move 1309 | . 75 149 683 402 Hop . | . . . . . Pick Up 14 | . 5 4 1 4 Fast Attach 23 | . 3 1 5 14 Attach 7 | . . 1 1 5 Detach 2 | . 1 . 1 . Swap 10 | . 2 1 2 5 Drop 29 | . 7 7 7 8 Fire 80 | . 15 4 8 53 Melee . | . . . . . Ram 8 | . . . . 8 Kick 10 | . . . 4 6 Crush . | . . . . . Escape Stasis . | . . . . . Rewire . | . . . . . Trap . | . . . . . Miscellaneous . | . . . . . Route ------- -11/Scrapyard -10/Materials -10/Subcaves -7/Scraptown -5/Factory History --------- Turn | Location | Event 1 | -11/Scrapyard | Discovered new exit (range 0) 1 | -11/Scrapyard | Entered Materials 149 | -10/Materials | Discovered new exit (range 7) 156 | -10/Materials | Entered Subcaves 157 | -10/Subcaves | Approached by a straggling Scientist 214 | -10/Subcaves | Shifting Twisted Machinery released Sub. Beam Cannon 263 | -10/Subcaves | Shifting Twisted Machinery released Battle Cannon 300 | -10/Subcaves | Build established: Mutant 438 | -10/Subcaves | Scientist uncovered a shortcut to Scraptown 458 | -10/Subcaves | Entered Scraptown 873 | -7/Scraptown | Scanned Subdweller tech in exchange for log data 880 | -7/Scraptown | Learned Research security intel 882 | -7/Scraptown | Learned location of 1 exit from Research 941 | -7/Scraptown | Visited Cyclists 1017 | -7/Scraptown | Visited CPS Storage 1042 | -7/Scraptown | Visited Fellowship of the Rings 1095 | -7/Scraptown | Visited UFD Registry 1099 | -7/Scraptown | Registered with UFD as "Ioncore" 1220 | -7/Scraptown | Visited LU-1G1's Boring Crew 1353 | -7/Scraptown | Visited DA-N13 Charitable Foundation 1371 | -7/Scraptown | Found DCF Scrap (30 items) 1428 | -7/Scraptown | Visited Scrapoid Pod Storage 1462 | -7/Scraptown | Visited Research Penetration Think Tank 1524 | -7/Scraptown | Met Optimus 1524 | -7/Scraptown | Accepted into 0bPrime 1583 | -7/Scraptown | Civil war broke out across Scraptown 1649 | -7/Scraptown | Core integrity fell below 50% 1651 | -7/Scraptown | Found Scrap Suit 1659 | -7/Scraptown | Discovered new exit (range 5) 1669 | -7/Scraptown | Core integrity fell below 20% 1672 | -7/Scraptown | Entered Factory 1672 | -5/Factory | Evolved 10 slots: Power x1, Propulsion x2, Utility x5, Weapon x2 1705 | -5/Factory | Found Imp. Powered Armor 1708 | -5/Factory | Found Imp. Powered Armor 1711 | -5/Factory | Found Imp. Powered Armor 1714 | -5/Factory | Found Imp. Powered Armor 1750 | -5/Factory | Spotted B-75 Beast 2264 | -5/Factory | Build established: Tank 2436 | -5/Factory | Lost 14 parts (2p3n4u5w) 2505 | -5/Factory | System corruption reached 10% 2525 | -5/Factory | Core integrity fell below 50% 2552 | -5/Factory | Released all parts (3) 2561 | -5/Factory | Core integrity fell below 20% 2572 | -5/Factory | Lost 3 parts (1n2w) 2595 | -5/Factory | Destroyed by P-70 Sage with High-powered Shock Rifle Last Messages --------------- 02543_ K-01 Serf collects debris. 02547_ P-70 Sage resets K-01 Serf, system corruption cleaned. 02547_ Slammed into P-70 Sage. 02551_ K-01 Serf collects debris. 02552_ ALERT: Cargo convoy en route, clear transfer corridor. 02552_ Released Imp. Energy Well. 02552_ Released Med. Storage Unit. 02552_ Released Neutrino Core. 02556_ QH FY2G